[Event "*** Titled Tuesday Blitz"]
[Site "Chess.com"]
[Date "2021.03.16"]
[Round "9"]
[White "ural58"]
[Black "Taran2004"]
[Result "0-1"]
[WhiteElo "2520"]
[BlackElo "2450"]
[TimeControl "180+1"]
[EndTime "11:44:34 PDT"]
[Termination "Taran2004 won by resignation"]

1. e4 {[%clk 0:03:00.9]} 1... c5 {[%clk 0:02:59.6]} 2. b3 {[%clk 0:02:58.5]}
2... d6 {[%clk 0:02:56.8]} 3. Bb2 {[%clk 0:02:57.4]} 3... Nf6 {[%clk 0:02:57.4]}
4. Bxf6 {[%clk 0:02:50.5]} 4... exf6 {[%clk 0:02:56.1]} 5. Bd3 {[%clk
0:02:50.4]} 5... Nc6 {[%clk 0:02:55.7]} 6. Nc3 {[%clk 0:02:28.9]} 6... g6 {[%clk
0:02:51.5]} 7. f4 {[%clk 0:00:54.5]} 7... Bg7 {[%clk 0:02:50.4]} 8. Nge2 {[%clk
0:00:49.8]} 8... O-O {[%clk 0:02:50.3]} 9. O-O {[%clk 0:00:49.7]} 9... a6 {[%clk
0:02:48.8]} 10. a4 {[%clk 0:00:49.1]} 10... Be6 {[%clk 0:02:46.1]} 11. f5 {[%clk
0:00:48.8]} 11... Bd7 {[%clk 0:02:45.3]} 12. Nf4 {[%clk 0:00:49]} 12... Ne5
{[%clk 0:02:45.1]} 13. Ncd5 {[%clk 0:00:48.8]} 13... Bc6 {[%clk 0:02:35.8]} 14.
Qe2 {[%clk 0:00:43.1]} 14... g5 {[%clk 0:02:28.9]} 15. Nh5 {[%clk 0:00:43.1]}
15... Bxd5 {[%clk 0:02:28.4]} 16. exd5 {[%clk 0:00:44]} 16... h6 {[%clk
0:02:26.2]} 17. c4 {[%clk 0:00:43.5]} 17... Re8 {[%clk 0:02:25.4]} 18. Bc2
{[%clk 0:00:43.7]} 18... Qe7 {[%clk 0:02:24.5]} 19. h3 {[%clk 0:00:42.4]} 19...
Nd7 {[%clk 0:02:18.7]} 20. Qf2 {[%clk 0:00:42.7]} 20... Qe5 {[%clk 0:01:59.9]}
21. Rab1 {[%clk 0:00:40.4]} 21... Qd4 {[%clk 0:01:50.9]} 22. Qxd4 {[%clk
0:00:39.9]} 22... cxd4 {[%clk 0:01:51.8]} 23. b4 {[%clk 0:00:30.4]} 23... b6
{[%clk 0:01:51.1]} 24. d3 {[%clk 0:00:29.9]} 24... a5 {[%clk 0:01:50.9]} 25. Kf2
{[%clk 0:00:26.8]} 25... axb4 {[%clk 0:01:49]} 26. Rxb4 {[%clk 0:00:27.7]} 26...
Rab8 {[%clk 0:01:46.4]} 27. Re1 {[%clk 0:00:27]} 27... Rxe1 {[%clk 0:01:45.7]}
28. Kxe1 {[%clk 0:00:27.9]} 28... Bf8 {[%clk 0:01:35.8]} 29. a5 {[%clk
0:00:27.2]} 29... bxa5 {[%clk 0:01:30.9]} 30. Nxf6+ {[%clk 0:00:24.9]} 30... Kg7
{[%clk 0:01:25.1]} 31. Rxb8 {[%clk 0:00:24.8]} 31... Nxb8 {[%clk 0:01:26]} 32.
Ne8+ {[%clk 0:00:23.6]} 32... Kg8 {[%clk 0:01:24.7]} 33. Nc7 {[%clk 0:00:24.5]}
33... Be7 {[%clk 0:01:17.2]} 34. Ba4 {[%clk 0:00:22.2]} 34... Kg7 {[%clk
0:01:13.1]} 35. g4 {[%clk 0:00:22.4]} 35... Kf6 {[%clk 0:01:12.5]} 36. Kf2
{[%clk 0:00:22.7]} 36... Ke5 {[%clk 0:01:12.2]} 37. Kf3 {[%clk 0:00:23.3]} 37...
Bd8 {[%clk 0:01:11.1]} 38. Nb5 {[%clk 0:00:19.5]} 38... Na6 {[%clk 0:01:11]} 39.
Na7 {[%clk 0:00:18]} 39... Kf6 {[%clk 0:01:09]} 40. Nc6 {[%clk 0:00:17.6]} 40...
Bb6 {[%clk 0:01:09.3]} 41. Bb5 {[%clk 0:00:16.5]} 41... Nc5 {[%clk 0:01:03.5]}
42. Ke2 {[%clk 0:00:17.4]} 42... a4 {[%clk 0:01:02.3]} 43. Kd2 {[%clk
0:00:17.4]} 43... a3 {[%clk 0:01:00.7]} 44. Kc2 {[%clk 0:00:17.8]} 44... h5
{[%clk 0:00:56.5]} 45. Nxd4 {[%clk 0:00:15.5]} 45... hxg4 {[%clk 0:00:55.5]} 46.
hxg4 {[%clk 0:00:15.2]} 46... a2 {[%clk 0:00:49.1]} 47. Kb2 {[%clk 0:00:13.4]}
47... Nxd3+ {[%clk 0:00:49.3]} 48. Kxa2 {[%clk 0:00:13.3]} 48... Bxd4 {[%clk
0:00:49.6]} 49. Kb3 {[%clk 0:00:12.8]} 49... Bc5 {[%clk 0:00:49.3]} 50. Kc3
{[%clk 0:00:09.1]} 50... Ne5 {[%clk 0:00:49.5]} 0-1

[Event "*** Titled Tuesday Blitz"]
[Site "Chess.com"]
[Date "2021.03.16"]
[Round "9"]
[White "JimmmyZhang"]
[Black "rpragchess"]
[Result "1-0"]
[WhiteElo "2584"]
[BlackElo "2905"]
[TimeControl "180+1"]
[EndTime "11:44:35 PDT"]
[Termination "JimmmyZhang won by resignation"]

1. d4 {[%clk 0:03:00.9]} 1... Nf6 {[%clk 0:02:51.7]} 2. Nf3 {[%clk 0:03:00.7]}
2... g6 {[%clk 0:02:51.4]} 3. Nc3 {[%clk 0:03:00.3]} 3... d5 {[%clk 0:02:50.6]}
4. Bf4 {[%clk 0:02:58.9]} 4... Bg7 {[%clk 0:02:46.7]} 5. e3 {[%clk 0:02:57.8]}
5... O-O {[%clk 0:02:41]} 6. Bd3 {[%clk 0:02:56.5]} 6... c5 {[%clk 0:02:31.8]}
7. dxc5 {[%clk 0:02:49.7]} 7... Nbd7 {[%clk 0:02:25.2]} 8. O-O {[%clk
0:02:45.4]} 8... Nxc5 {[%clk 0:02:24.6]} 9. Be2 {[%clk 0:02:41.6]} 9... Nfe4
{[%clk 0:02:08]} 10. Nxd5 {[%clk 0:02:36.6]} 10... Bxb2 {[%clk 0:01:58.1]} 11.
Bc7 {[%clk 0:02:35.6]} 11... Qd7 {[%clk 0:01:46.7]} 12. Rb1 {[%clk 0:02:32.3]}
12... Bg7 {[%clk 0:01:44.2]} 13. Ne5 {[%clk 0:02:28.9]} 13... Qe6 {[%clk
0:01:29.3]} 14. Qd4 {[%clk 0:02:12.2]} 14... b6 {[%clk 0:01:05.5]} 15. Nf4
{[%clk 0:02:10.5]} 15... Qxa2 {[%clk 0:00:56.2]} 16. Bc4 {[%clk 0:02:02.4]}
16... Qa3 {[%clk 0:00:44.4]} 17. Bd5 {[%clk 0:01:47.3]} 17... Bf5 {[%clk
0:00:44]} 18. g4 {[%clk 0:01:38.6]} 18... e6 {[%clk 0:00:26]} 19. Bxa8 {[%clk
0:01:31.8]} 19... Rxa8 {[%clk 0:00:21.2]} 20. gxf5 {[%clk 0:01:30.9]} 20... exf5
{[%clk 0:00:17.5]} 21. Qd5 {[%clk 0:01:21.6]} 21... Rf8 {[%clk 0:00:17.3]} 22.
Nd7 {[%clk 0:01:07.7]} 22... Nxd7 {[%clk 0:00:16.1]} 23. Qxd7 {[%clk 0:01:07]}
23... Qc3 {[%clk 0:00:13.9]} 24. Rbd1 {[%clk 0:01:05.3]} 24... h5 {[%clk
0:00:12.9]} 25. Bd6 {[%clk 0:00:52.6]} 25... Ra8 {[%clk 0:00:08.2]} 26. Qa4
{[%clk 0:00:33.9]} 26... h4 {[%clk 0:00:07.2]} 27. Qb3 {[%clk 0:00:32.4]} 27...
Qa5 {[%clk 0:00:05.9]} 28. Rd5 {[%clk 0:00:28.4]} 28... Qa6 {[%clk 0:00:05.3]}
29. Nxg6 {[%clk 0:00:24.9]} 29... Kh7 {[%clk 0:00:02.8]} 30. Nxh4 {[%clk
0:00:24.9]} 30... Rg8 {[%clk 0:00:03.3]} 31. Bg3 {[%clk 0:00:14.9]} 31... Bh6
{[%clk 0:00:03]} 32. Rxf5 {[%clk 0:00:13.7]} 32... Qxf1+ {[%clk 0:00:03.1]} 33.
Kxf1 {[%clk 0:00:12.9]} 33... Nd2+ {[%clk 0:00:03.6]} 34. Kg2 {[%clk 0:00:13.5]}
34... Nxb3 {[%clk 0:00:03.8]} 35. Rxf7+ {[%clk 0:00:11.1]} 35... Rg7 {[%clk
0:00:02.2]} 36. Rxg7+ {[%clk 0:00:11]} 36... Bxg7 {[%clk 0:00:03.1]} 37. cxb3
{[%clk 0:00:11.9]} 37... a5 {[%clk 0:00:04]} 38. Bc7 {[%clk 0:00:11.3]} 1-0

[Event "*** Titled Tuesday Blitz"]
[Site "Chess.com"]
[Date "2021.03.16"]
[Round "9"]
[White "bazar-wokzal"]
[Black "alexrustemov"]
[Result "1/2-1/2"]
[WhiteElo "2524"]
[BlackElo "2766"]
[TimeControl "180+1"]
[EndTime "11:44:37 PDT"]
[Termination "Game drawn by repetition"]

1. e4 {[%clk 0:03:00.9]} 1... e6 {[%clk 0:03:00.1]} 2. d4 {[%clk 0:03:00.6]}
2... d5 {[%clk 0:03:00.8]} 3. exd5 {[%clk 0:03:01]} 3... exd5 {[%clk 0:03:01.7]}
4. Nf3 {[%clk 0:03:01.3]} 4... Bf5 {[%clk 0:03:02.2]} 5. c4 {[%clk 0:02:53.9]}
5... Bxb1 {[%clk 0:03:02.6]} 6. Rxb1 {[%clk 0:02:53.6]} 6... Bb4+ {[%clk
0:03:03.3]} 7. Bd2 {[%clk 0:02:53.6]} 7... Bxd2+ {[%clk 0:03:03.9]} 8. Qxd2
{[%clk 0:02:53.9]} 8... Nf6 {[%clk 0:03:04.4]} 9. Qe3+ {[%clk 0:02:48.3]} 9...
Qe7 {[%clk 0:03:03.6]} 10. Qxe7+ {[%clk 0:02:46.6]} 10... Kxe7 {[%clk
0:03:03.6]} 11. Bd3 {[%clk 0:02:46.1]} 11... dxc4 {[%clk 0:03:01.1]} 12. Bxc4
{[%clk 0:02:45.8]} 12... Rd8 {[%clk 0:02:53.4]} 13. O-O {[%clk 0:02:45.1]} 13...
Nc6 {[%clk 0:02:51.4]} 14. Rbd1 {[%clk 0:02:37.2]} 14... Nd5 {[%clk 0:02:45.7]}
15. Ne5 {[%clk 0:02:19.3]} 15... Nxe5 {[%clk 0:02:40.1]} 16. dxe5 {[%clk
0:02:19]} 16... Nb6 {[%clk 0:02:26.8]} 17. Bb3 {[%clk 0:02:15.6]} 17... c5
{[%clk 0:02:12.9]} 18. f4 {[%clk 0:02:01.5]} 18... c4 {[%clk 0:02:03.3]} 19. Bc2
{[%clk 0:02:01.3]} 19... Nd5 {[%clk 0:01:57.3]} 20. Be4 {[%clk 0:01:37.2]} 20...
Ne3 {[%clk 0:01:55.9]} 21. Rxd8 {[%clk 0:01:35.4]} 21... Rxd8 {[%clk 0:01:56.4]}
22. Rf3 {[%clk 0:01:23]} 22... Rd1+ {[%clk 0:01:36.3]} 23. Kf2 {[%clk
0:01:22.7]} 23... Nd5 {[%clk 0:01:36.9]} 24. Ke2 {[%clk 0:01:07.5]} 24... Rd4
{[%clk 0:01:36.1]} 25. Bxd5 {[%clk 0:01:06.6]} 25... Rxd5 {[%clk 0:01:36.8]} 26.
Rc3 {[%clk 0:01:05.2]} 26... b5 {[%clk 0:01:35.4]} 27. b3 {[%clk 0:01:04.3]}
27... cxb3 {[%clk 0:01:32]} 28. axb3 {[%clk 0:01:02.3]} 28... a5 {[%clk
0:01:30.9]} 29. Ke3 {[%clk 0:00:57.5]} 29... Rd7 {[%clk 0:01:27.3]} 30. Rc5
{[%clk 0:00:55.4]} 30... Rb7 {[%clk 0:01:25.9]} 31. f5 {[%clk 0:00:51]} 31... h5
{[%clk 0:01:11.3]} 32. g3 {[%clk 0:00:50.4]} 32... g6 {[%clk 0:01:10.6]} 33. Kf4
{[%clk 0:00:46.6]} 33... gxf5 {[%clk 0:01:06.7]} 34. Kxf5 {[%clk 0:00:46.6]}
34... a4 {[%clk 0:00:47.5]} 35. bxa4 {[%clk 0:00:46.3]} 35... bxa4 {[%clk
0:00:48.4]} 36. Ra5 {[%clk 0:00:46.6]} 36... Rb4 {[%clk 0:00:46.8]} 37. Kg5
{[%clk 0:00:42.8]} 37... h4 {[%clk 0:00:43.9]} 38. gxh4 {[%clk 0:00:42.6]} 38...
Ke6 {[%clk 0:00:44.4]} 39. h5 {[%clk 0:00:42.2]} 39... Rb2 {[%clk 0:00:43.6]}
40. Rxa4 {[%clk 0:00:36.6]} 40... Rg2+ {[%clk 0:00:40.1]} 41. Rg4 {[%clk
0:00:32.6]} 41... Rxh2 {[%clk 0:00:35.8]} 42. h6 {[%clk 0:00:27.8]} 42... Kxe5
{[%clk 0:00:36]} 43. Rh4 {[%clk 0:00:24.9]} 43... Rg2+ {[%clk 0:00:27.6]} 44.
Kh5 {[%clk 0:00:24.7]} 44... Kf5 {[%clk 0:00:20]} 45. h7 {[%clk 0:00:24.2]}
45... Rg5+ {[%clk 0:00:19.4]} 46. Kh6 {[%clk 0:00:24.7]} 46... Rg6+ {[%clk
0:00:19.8]} 47. Kh5 {[%clk 0:00:25.2]} 47... Rg5+ {[%clk 0:00:17.4]} 48. Kh6
{[%clk 0:00:25.7]} 48... Rg6+ {[%clk 0:00:17.7]} 49. Kh5 {[%clk 0:00:25.9]}
49... Rg5+ {[%clk 0:00:18]} 1/2-1/2

[Event "*** Titled Tuesday Blitz"]
[Site "Chess.com"]
[Date "2021.03.16"]
[Round "9"]
[White "IwkooO"]
[Black "Agnes66678"]
[Result "1-0"]
[WhiteElo "2631"]
[BlackElo "2453"]
[TimeControl "180+1"]
[EndTime "11:44:41 PDT"]
[Termination "IwkooO won by checkmate"]

1. e4 {[%clk 0:03:00.9]} 1... d6 {[%clk 0:02:59.1]} 2. d4 {[%clk 0:02:58.6]}
2... Nf6 {[%clk 0:02:58.5]} 3. Nc3 {[%clk 0:02:58.9]} 3... e5 {[%clk 0:02:58.4]}
4. Nf3 {[%clk 0:02:57.2]} 4... Nbd7 {[%clk 0:02:57.9]} 5. Bc4 {[%clk 0:02:50.2]}
5... Be7 {[%clk 0:02:57.7]} 6. O-O {[%clk 0:02:48.9]} 6... O-O {[%clk
0:02:57.2]} 7. Re1 {[%clk 0:02:47.3]} 7... c6 {[%clk 0:02:56.3]} 8. a4 {[%clk
0:02:44.8]} 8... a5 {[%clk 0:02:56]} 9. h3 {[%clk 0:02:38.9]} 9... Nb6 {[%clk
0:02:55.5]} 10. Bb3 {[%clk 0:02:35.3]} 10... Nfd7 {[%clk 0:02:53.9]} 11. Be3
{[%clk 0:02:30.6]} 11... exd4 {[%clk 0:02:53.3]} 12. Nxd4 {[%clk 0:02:29.7]}
12... Nc5 {[%clk 0:02:54.2]} 13. Qf3 {[%clk 0:02:28.6]} 13... Nxb3 {[%clk
0:02:52.8]} 14. cxb3 {[%clk 0:02:29.1]} 14... Be6 {[%clk 0:02:41.6]} 15. Rad1
{[%clk 0:02:27.5]} 15... Nd7 {[%clk 0:02:38.5]} 16. Nce2 {[%clk 0:02:06.7]}
16... Ne5 {[%clk 0:02:07.7]} 17. Qg3 {[%clk 0:02:06.3]} 17... Bh4 {[%clk
0:02:06.1]} 18. Qh2 {[%clk 0:01:59.7]} 18... Qe7 {[%clk 0:01:46.6]} 19. f4
{[%clk 0:01:46.4]} 19... Bxe1 {[%clk 0:01:39.3]} 20. Rxe1 {[%clk 0:01:46.2]}
20... Nd7 {[%clk 0:01:31.4]} 21. f5 {[%clk 0:01:42.7]} 21... c5 {[%clk
0:01:18.1]} 22. Nb5 {[%clk 0:01:11]} 22... Bxb3 {[%clk 0:01:17.5]} 23. Nec3
{[%clk 0:01:06.6]} 23... Ne5 {[%clk 0:01:13.7]} 24. Bf4 {[%clk 0:01:02.5]} 24...
f6 {[%clk 0:01:12.5]} 25. Qg3 {[%clk 0:00:58.4]} 25... Rfd8 {[%clk 0:01:10.1]}
26. Re2 {[%clk 0:00:42.4]} 26... Bc4 {[%clk 0:01:08.4]} 27. Rd2 {[%clk
0:00:41.1]} 27... Rd7 {[%clk 0:01:03.8]} 28. Na3 {[%clk 0:00:33.2]} 28... Bf7
{[%clk 0:00:55.7]} 29. Nc2 {[%clk 0:00:33.2]} 29... Nc4 {[%clk 0:00:50.5]} 30.
Rd1 {[%clk 0:00:30.8]} 30... Nxb2 {[%clk 0:00:49.8]} 31. Rxd6 {[%clk 0:00:31]}
31... Rxd6 {[%clk 0:00:47]} 32. Bxd6 {[%clk 0:00:31.9]} 32... Qd7 {[%clk
0:00:43.5]} 33. Ne3 {[%clk 0:00:28.5]} 33... Nxa4 {[%clk 0:00:37.7]} 34. Ncd5
{[%clk 0:00:26.2]} 34... Bxd5 {[%clk 0:00:36.8]} 35. Nxd5 {[%clk 0:00:27.1]}
35... Kh8 {[%clk 0:00:33.7]} 36. e5 {[%clk 0:00:20]} 36... fxe5 {[%clk
0:00:32.4]} 37. Bxe5 {[%clk 0:00:19.3]} 37... Qf7 {[%clk 0:00:22.5]} 38. Nf4
{[%clk 0:00:15.4]} 38... Re8 {[%clk 0:00:20.5]} 39. Ne6 {[%clk 0:00:15.7]} 39...
Rg8 {[%clk 0:00:19.6]} 40. Qg5 {[%clk 0:00:14.3]} 40... Nb6 {[%clk 0:00:18.7]}
41. Nf4 {[%clk 0:00:14.4]} 41... Nd5 {[%clk 0:00:18.2]} 42. Ng6+ {[%clk
0:00:14.6]} 42... Qxg6 {[%clk 0:00:12.6]} 43. fxg6 {[%clk 0:00:14.7]} 43... h6
{[%clk 0:00:13.3]} 44. Qxh6# {[%clk 0:00:15.1]} 1-0

[Event "*** Titled Tuesday Blitz"]
[Site "Chess.com"]
[Date "2021.03.16"]
[Round "9"]
[White "LamaChampetre"]
[Black "JiiHart"]
[Result "0-1"]
[WhiteElo "2212"]
[BlackElo "2086"]
[TimeControl "180+1"]
[EndTime "11:44:41 PDT"]
[Termination "JiiHart won on time"]

1. d4 {[%clk 0:03:00.9]} 1... Nf6 {[%clk 0:02:58.7]} 2. c4 {[%clk 0:03:01]} 2...
e6 {[%clk 0:02:58.7]} 3. Nf3 {[%clk 0:02:59.9]} 3... c5 {[%clk 0:02:57.7]} 4. d5
{[%clk 0:02:59.7]} 4... exd5 {[%clk 0:02:57.2]} 5. cxd5 {[%clk 0:03:00.6]} 5...
d6 {[%clk 0:02:57.7]} 6. g3 {[%clk 0:03:01]} 6... g6 {[%clk 0:02:53.7]} 7. Bg2
{[%clk 0:02:57.3]} 7... Bg7 {[%clk 0:02:52.7]} 8. O-O {[%clk 0:02:53.7]} 8...
O-O {[%clk 0:02:51.8]} 9. Nc3 {[%clk 0:02:47.3]} 9... a6 {[%clk 0:02:14.6]} 10.
a4 {[%clk 0:02:45.4]} 10... b6 {[%clk 0:02:14.3]} 11. Bf4 {[%clk 0:02:44]} 11...
Bb7 {[%clk 0:02:13.3]} 12. Rc1 {[%clk 0:02:35.2]} 12... Ne8 {[%clk 0:02:08.7]}
13. Qd2 {[%clk 0:02:22.4]} 13... Nd7 {[%clk 0:02:07.5]} 14. Rfe1 {[%clk
0:02:19.8]} 14... Qe7 {[%clk 0:01:49.5]} 15. h4 {[%clk 0:01:55.5]} 15... Nc7
{[%clk 0:01:41]} 16. Bg5 {[%clk 0:01:49.5]} 16... f6 {[%clk 0:01:36.8]} 17. Bf4
{[%clk 0:01:48.6]} 17... b5 {[%clk 0:01:30.3]} 18. Nh2 {[%clk 0:01:07.2]} 18...
f5 {[%clk 0:01:24.8]} 19. e4 {[%clk 0:00:58.4]} 19... b4 {[%clk 0:00:49]} 20.
Nd1 {[%clk 0:00:31]} 20... fxe4 {[%clk 0:00:45.4]} 21. Rxe4 {[%clk 0:00:29.5]}
21... Qf6 {[%clk 0:00:41.8]} 22. Bg5 {[%clk 0:00:27.9]} 22... Qf5 {[%clk
0:00:34.2]} 23. Rf4 {[%clk 0:00:21.3]} 23... Qe5 {[%clk 0:00:22]} 24. Ng4 {[%clk
0:00:12.3]} 24... Qe8 {[%clk 0:00:20.9]} 25. Rxf8+ {[%clk 0:00:09.3]} 25... Qxf8
{[%clk 0:00:19.4]} 26. Nh6+ {[%clk 0:00:09.2]} 26... Bxh6 {[%clk 0:00:19.2]} 27.
Bxh6 {[%clk 0:00:09.6]} 27... Qf5 {[%clk 0:00:18.9]} 28. Ne3 {[%clk 0:00:08.7]}
28... Qe5 {[%clk 0:00:14.6]} 29. Re1 {[%clk 0:00:07.8]} 29... Qd4 {[%clk
0:00:14.4]} 30. Qe2 {[%clk 0:00:07.5]} 30... Re8 {[%clk 0:00:13.1]} 31. Qg4
{[%clk 0:00:07.2]} 31... Qxg4 {[%clk 0:00:12.3]} 32. Nxg4 {[%clk 0:00:05.1]}
32... Rxe1+ {[%clk 0:00:12.4]} 33. Kh2 {[%clk 0:00:05.1]} 33... Bxd5 {[%clk
0:00:12.3]} 34. f3 {[%clk 0:00:02.8]} 34... Re2 {[%clk 0:00:11.5]} 35. Kh3
{[%clk 0:00:01]} 35... Rxb2 {[%clk 0:00:10.8]} 0-1

[Event "*** Titled Tuesday Blitz"]
[Site "Chess.com"]
[Date "2021.03.16"]
[Round "9"]
[White "Ranindu2003"]
[Black "Kobalia"]
[Result "0-1"]
[WhiteElo "2589"]
[BlackElo "2735"]
[TimeControl "180+1"]
[EndTime "11:44:42 PDT"]
[Termination "Kobalia won by checkmate"]

1. e4 {[%clk 0:03:00.3]} 1... c5 {[%clk 0:02:59.7]} 2. Nf3 {[%clk 0:03:00.5]}
2... e6 {[%clk 0:03:00]} 3. d4 {[%clk 0:03:00.6]} 3... cxd4 {[%clk 0:03:00.1]}
4. Nxd4 {[%clk 0:03:01.5]} 4... Nc6 {[%clk 0:03:00.5]} 5. Nc3 {[%clk 0:03:00.6]}
5... a6 {[%clk 0:03:00.8]} 6. g3 {[%clk 0:03:00.5]} 6... d6 {[%clk 0:02:59.6]}
7. Nxc6 {[%clk 0:02:56.9]} 7... bxc6 {[%clk 0:02:58.6]} 8. Bg2 {[%clk
0:02:57.5]} 8... Qc7 {[%clk 0:02:56.8]} 9. O-O {[%clk 0:02:57.5]} 9... Be7
{[%clk 0:02:55.2]} 10. Na4 {[%clk 0:02:56.6]} 10... Nf6 {[%clk 0:02:53.5]} 11.
c4 {[%clk 0:02:55.7]} 11... O-O {[%clk 0:02:52.8]} 12. c5 {[%clk 0:02:54.5]}
12... d5 {[%clk 0:02:49.4]} 13. exd5 {[%clk 0:02:48.3]} 13... Nxd5 {[%clk
0:02:46.5]} 14. b3 {[%clk 0:02:34]} 14... a5 {[%clk 0:02:39.6]} 15. Re1 {[%clk
0:02:22.4]} 15... Rd8 {[%clk 0:02:37.3]} 16. Qc2 {[%clk 0:01:51.2]} 16... Nb4
{[%clk 0:02:20.2]} 17. Qe4 {[%clk 0:01:50]} 17... Ba6 {[%clk 0:02:17.7]} 18. Bf4
{[%clk 0:01:47]} 18... Qb7 {[%clk 0:02:10]} 19. Be5 {[%clk 0:01:36.5]} 19... Bb5
{[%clk 0:02:05.3]} 20. Qg4 {[%clk 0:01:32.2]} 20... Bf8 {[%clk 0:02:04.8]} 21.
Nb6 {[%clk 0:01:29.9]} 21... Ra7 {[%clk 0:02:00.7]} 22. Rad1 {[%clk 0:01:27.7]}
22... Nd3 {[%clk 0:01:54.5]} 23. Ba1 {[%clk 0:01:13.8]} 23... f5 {[%clk
0:01:46.1]} 24. Qg5 {[%clk 0:00:35.9]} 24... Re8 {[%clk 0:01:45.2]} 25. Re3
{[%clk 0:00:18.4]} 25... Bxc5 {[%clk 0:01:37.2]} 26. Nc4 {[%clk 0:00:10.9]}
26... Bxc4 {[%clk 0:01:30.7]} 27. bxc4 {[%clk 0:00:11.2]} 27... Bxe3 {[%clk
0:01:27.2]} 28. fxe3 {[%clk 0:00:12.1]} 28... Nb4 {[%clk 0:01:12.3]} 29. a3
{[%clk 0:00:11.2]} 29... Nc2 {[%clk 0:01:11.8]} 30. Be5 {[%clk 0:00:09]} 30...
Qe7 {[%clk 0:01:02.6]} 31. Qf4 {[%clk 0:00:08.7]} 31... Qxa3 {[%clk 0:00:59.9]}
32. Bxc6 {[%clk 0:00:07.4]} 32... Nxe3 {[%clk 0:00:40.1]} 33. Re1 {[%clk
0:00:07.3]} 33... Rc8 {[%clk 0:00:38.8]} 34. Rxe3 {[%clk 0:00:06.4]} 34... Qc1+
{[%clk 0:00:37.7]} 35. Kg2 {[%clk 0:00:06.7]} 35... Rxc6 {[%clk 0:00:37.3]} 36.
Qd4 {[%clk 0:00:06.9]} 36... Rb7 {[%clk 0:00:19.8]} 37. Qd8+ {[%clk 0:00:05.8]}
37... Kf7 {[%clk 0:00:19.8]} 38. Rd3 {[%clk 0:00:06.4]} 38... Rb2+ {[%clk
0:00:16.4]} 39. Kh3 {[%clk 0:00:06.8]} 39... Qf1+ {[%clk 0:00:15.6]} 40. Kh4
{[%clk 0:00:07.2]} 40... Rxh2+ {[%clk 0:00:15.3]} 41. Kg5 {[%clk 0:00:07.8]}
41... h6# {[%clk 0:00:15.5]} 0-1

[Event "*** Titled Tuesday Blitz"]
[Site "Chess.com"]
[Date "2021.03.16"]
[Round "9"]
[White "I_Enchev"]
[Black "Pinkito"]
[Result "1-0"]
[WhiteElo "2551"]
[BlackElo "2443"]
[TimeControl "180+1"]
[EndTime "11:44:44 PDT"]
[Termination "I_Enchev won by resignation"]

1. d4 {[%clk 0:03:00.9]} 1... e6 {[%clk 0:02:57.4]} 2. c4 {[%clk 0:03:00.6]}
2... f5 {[%clk 0:02:57.5]} 3. Nf3 {[%clk 0:03:00.4]} 3... Nf6 {[%clk 0:02:58]}
4. g3 {[%clk 0:03:00.7]} 4... Be7 {[%clk 0:02:58.2]} 5. Bg2 {[%clk 0:03:01.1]}
5... O-O {[%clk 0:02:58.6]} 6. O-O {[%clk 0:03:01.6]} 6... d6 {[%clk 0:02:58.6]}
7. Nc3 {[%clk 0:02:59.8]} 7... Ne4 {[%clk 0:02:58.5]} 8. Qc2 {[%clk 0:02:58.3]}
8... Nxc3 {[%clk 0:02:58.2]} 9. bxc3 {[%clk 0:02:59]} 9... Nc6 {[%clk
0:02:57.8]} 10. e4 {[%clk 0:02:58.6]} 10... e5 {[%clk 0:02:57.9]} 11. dxe5
{[%clk 0:02:48.7]} 11... dxe5 {[%clk 0:02:57]} 12. Rd1 {[%clk 0:02:48.4]} 12...
Qe8 {[%clk 0:02:56.3]} 13. exf5 {[%clk 0:02:35.8]} 13... Bxf5 {[%clk 0:02:55.6]}
14. Qb3 {[%clk 0:02:35.6]} 14... Bg4 {[%clk 0:02:46.2]} 15. Nd2 {[%clk
0:02:17.9]} 15... Bxd1 {[%clk 0:02:40.4]} 16. Qxd1 {[%clk 0:02:18.8]} 16... Bg5
{[%clk 0:02:01.8]} 17. Ne4 {[%clk 0:02:17.3]} 17... Rd8 {[%clk 0:02:00.4]} 18.
Qe2 {[%clk 0:02:12.5]} 18... Bxc1 {[%clk 0:01:59.3]} 19. Rxc1 {[%clk 0:02:13.4]}
19... Qe7 {[%clk 0:01:55.9]} 20. c5 {[%clk 0:02:09.9]} 20... Kh8 {[%clk
0:01:49.1]} 21. Rb1 {[%clk 0:02:09]} 21... b6 {[%clk 0:01:44.3]} 22. cxb6 {[%clk
0:02:08.2]} 22... axb6 {[%clk 0:01:43.8]} 23. Qc4 {[%clk 0:02:08.1]} 23... Na5
{[%clk 0:01:41.8]} 24. Qe2 {[%clk 0:02:06.8]} 24... Qd7 {[%clk 0:01:36.1]} 25.
Re1 {[%clk 0:02:03.7]} 25... Qf5 {[%clk 0:01:28]} 26. h4 {[%clk 0:01:59.3]}
26... h6 {[%clk 0:01:22.4]} 27. Kh2 {[%clk 0:01:56.5]} 27... Nb7 {[%clk
0:01:20.1]} 28. Qb5 {[%clk 0:01:50.9]} 28... Nd6 {[%clk 0:01:16]} 29. Nxd6
{[%clk 0:01:47.4]} 29... Rxd6 {[%clk 0:01:16.2]} 30. Re2 {[%clk 0:01:42.5]}
30... Qd7 {[%clk 0:01:04]} 31. Qxe5 {[%clk 0:01:40.2]} 31... Rd2 {[%clk
0:01:02.4]} 32. Kg1 {[%clk 0:01:36.2]} 32... Rxe2 {[%clk 0:01:00.8]} 33. Qxe2
{[%clk 0:01:37.1]} 33... Re8 {[%clk 0:00:52.1]} 34. Qc4 {[%clk 0:01:32.3]} 34...
Qe6 {[%clk 0:00:48.1]} 35. Qxc7 {[%clk 0:01:30.3]} 35... Qe1+ {[%clk 0:00:47.8]}
36. Bf1 {[%clk 0:01:27.8]} 36... Qb1 {[%clk 0:00:37.3]} 37. a4 {[%clk
0:01:22.6]} 37... Re1 {[%clk 0:00:37]} 38. Qc8+ {[%clk 0:01:20.4]} 38... Kh7
{[%clk 0:00:36.5]} 39. Qc4 {[%clk 0:01:20.9]} 39... Kh8 {[%clk 0:00:19.2]} 40.
Qb5 {[%clk 0:00:59.2]} 40... Qxb5 {[%clk 0:00:18.8]} 41. axb5 {[%clk 0:01:00.1]}
41... Kg8 {[%clk 0:00:18.7]} 42. Kg2 {[%clk 0:00:59.8]} 42... Rc1 {[%clk
0:00:18.1]} 43. c4 {[%clk 0:00:59.1]} 43... Kf7 {[%clk 0:00:18.6]} 44. Bd3
{[%clk 0:00:57.3]} 44... Rc3 {[%clk 0:00:18.1]} 45. Be4 {[%clk 0:00:57.1]} 45...
Ke6 {[%clk 0:00:18.3]} 46. Bd5+ {[%clk 0:00:56.7]} 46... Ke5 {[%clk 0:00:18]}
47. f4+ {[%clk 0:00:56.6]} 47... Kd4 {[%clk 0:00:17.1]} 48. h5 {[%clk
0:00:51.4]} 48... Rxc4 {[%clk 0:00:16]} 49. Bxc4 {[%clk 0:00:52.3]} 49... Kxc4
{[%clk 0:00:16.4]} 50. g4 {[%clk 0:00:49.7]} 50... Kxb5 {[%clk 0:00:16.8]} 51.
g5 {[%clk 0:00:49.7]} 51... Kc6 {[%clk 0:00:17.2]} 52. f5 {[%clk 0:00:49.6]}
52... b5 {[%clk 0:00:14.7]} 53. f6 {[%clk 0:00:49.7]} 53... gxf6 {[%clk
0:00:13.2]} 54. gxh6 {[%clk 0:00:48.2]} 54... b4 {[%clk 0:00:13.7]} 55. h7
{[%clk 0:00:47.2]} 55... b3 {[%clk 0:00:14.2]} 56. h8=Q {[%clk 0:00:47]} 56...
b2 {[%clk 0:00:14.7]} 57. Qh7 {[%clk 0:00:46.6]} 1-0